Cogmind - Beta 16 --- EXPLORER MODE // 2025.10.23 @ 21:45:22 Player: Grimbling Result: Destroyed by ZD-FUR(x) with Makeshift Spear Performance ------------- Evolutions (0) 0 Regions Visited (3) 600 Robots Destroyed (9) 45 Value Destroyed (178) 178 Prototype IDs (1) 20 Alien Tech Used (0) 0 Bonus (800) 800 TOTAL SCORE: 1643 Bonus ------- Registered with UFD 300 Met Optimus in HQ 500 Cogmind --------- Core Integrity 0/250 Matter 300/300 Energy 100/100 System Corruption 1% Temperature Cool (74) Movement Core (100) Ox1 Location -9/Scraptown Parts ------- > --- POWER (1) -------- (None) > --- PROPULSION (2) --- (None) > --- UTILITY (3) ------ Scrap Suit Advanced Weight Redist. System > --- WEAPON (2) ------- (None) > --- INVENTORY (5) ---- Heat Sink Weight Redist. System Hardened Light Armor Plating Peak State ------------ > --- POWER ------------ Light Deuterium Engine > --- PROPULSION ------- Flight Unit Flight Unit > --- UTILITY ---------- Heat Sink Weight Redist. System Makeshift Light Armor Plating > --- WEAPON ----------- Experimental Plasma Cutter Falx > --- INVENTORY -------- Improved Hover Unit Advanced Weight Redist. System Melee Analysis Suite ECM Suite Hardened Light Armor Plating [Rating: 27] Favorites ----------- Power Ion Engine Engine Ion Engine Propulsion Flight Unit Leg Aluminum Leg Wheel Compact Wheel Hover Unit Improved Hover Unit Flight Unit Flight Unit Utility Heat Sink Device Heat Sink Storage Large Matter Pod Processor Targeting Computer Protection Light Armor Plating Weapon Medium Laser Energy Gun Medium Laser Special Weapon Experimental Plasma Cutter Slashing Weapon Falx Special Melee Weapon Datajack Build | -11 -10 -10 -9 ------- Run | Yrd Mat Sub Scr Slots Evolved 1 | . 1 . . Power . | . . . . Propulsion . | . . . . Utility 1 | . 1 . . Weapon . | . . . . Parts Attached 30 | 10 6 . 14 Power 3 | 1 . . 2 Engine 3 | 1 . . 2 Core . | . . . . Reactor . | . . . . Propulsion 7 | 4 2 . 1 Treads . | . . . . Leg 2 | 2 . . . Wheel 2 | 2 . . . Hover 1 | . . . 1 Flight 2 | . 2 . . Utility 12 | 2 2 . 8 Device 6 | . 2 . 4 Storage 1 | . . . 1 Processor 2 | 1 . . 1 Hackware . | . . . . Protection 3 | 1 . . 2 Artifact . | . . . . Weapon 8 | 3 2 . 3 Energy Gun 5 | 3 1 . 1 Energy Cannon . | . . . . Ballistic Gun . | . . . . Ballistic Cannon . | . . . . Launcher . | . . . . Special Weapon 1 | . . . 1 Impact Weapon . | . . . . Slashing Weapon 1 | . . . 1 Piercing Weapon . | . . . . Special Melee Weapon 1 | . 1 . . Unidentified Prototypes 1 | . . . 1 Parts Lost 6 | . . . 6 Power 2 | . . . 2 Propulsion 3 | . . . 3 Utility . | . . . . Weapon 1 | . . . 1 Highest Loss Streak 4 | . . . 4 To Critical Strikes . | . . . . Average Backups 3 | 1 2 4 4 Power . | . . . . Propulsion . | . . . . Utility 1 | . 1 1 2 Weapon 1 | . 1 1 1 Tool/Special . | . . . . Unused Backups 1 | . . 1 . Power . | . . . . Propulsion . | . . . . Utility 1 | . . 1 . Weapon . | . . . . Tool/Special . | . . . . Average Slot Usage (%) 79 | . 89 75 73 Engine 11 | . 11 12 11 Leg 6 | . 18 . . Flight 17 | . 5 25 22 Device 15 | . 8 12 22 Processor 8 | . 12 12 5 Protection 5 | . 9 . 5 Energy Gun 9 | . 20 12 . Slashing Weapon 1 | . . . 2 Peak Build Rating 27 | 7 8 7 27 Average Rating 8 | 5 7 6 10 On Entrance 4 | . 7 6 6 Avg Prop Armor Cover (%) 6 | . . . 6 Naked Turns . | . . . . Heaviest Build 13 | 11 13 8 13 Greatest Support 32 | 32 20 8 17 Greatest Overweight (x) 4 | . 4 . 2 Average Overweight (x) . | . . . . Largest Inventory Capacity 5 | 5 5 5 5 Average Capacity 5 | 5 5 5 5 Most Carried 5 | 5 5 5 5 Average Carried 3 | 1 2 4 4 Final Capacity 5 | 5 5 5 5 Final Carried 5 | 2 5 3 3 Scrap Suit Usage (%) 1 | . . . 2 Class Distribution -------------------- 96% | Hacker-Mutant 3% | Hacker-Scrapper Dominant Class ---------------- Hacker-Mutant | -10/Materials Hacker-Mutant | -10/Subcaves Hacker-Mutant | -9/Scraptown Resources | -11 -10 -10 -9 ----------- Run | Yrd Mat Sub Scr Matter Collected 646 | 277 183 10 176 Remotely . | . . . . Salvage Created 352 | 68 219 . 65 Parts 15 | 4 11 . . Haulers Intercepted 1 | . 1 . . Recyclers Shooed . | . . . . Parts Field Recycled . | . . . . Retrieved Matter . | . . . . Parts Self-Destructed . | . . . . Prevented . | . . . . Parts Restored . | . . . . Kills | -11 -10 -10 -9 ------- Run | Yrd Mat Sub Scr Combat Hostiles Destroyed 3 | . 2 . 1 Guns 2 | . 2 . . Classes Destroyed 7 | 1 5 . 1 Builder 1 | . 1 . . Tunneler 1 | . 1 . . Hauler 1 | . 1 . . Recycler 1 | 1 . . . Watcher 2 | . 2 . . Grunt 2 | . 2 . . Ranger 1 | . . . 1 Best Kill Streak 2 | 1 2 . 1 Combat Bots Only 2 | . 2 . 1 Max Kills in Single Turn 1 | 1 1 . 1 Gunslinging . | . . . . Exploded . | . . . . Melee . | . . . . Uniques/NPCs Destroyed . | . . . . Combat | -11 -10 -10 -9 -------- Run | Yrd Mat Sub Scr Hostile Shots Fired 119 | . 14 . 105 Missed 41 | . 6 . 35 Hits 78 | . 8 . 70 Melee 5 | . . . 5 Projectile 73 | . 8 . 65 Critical Strikes 4 | . . . 4 Damage Taken 739 | . 68 . 671 Core 261 | . 10 . 251 Absorbed by Shields . | . . . . Ignored by Resistances 450 | . 40 . 410 Regen/Repaired (Parts) 17 | . 17 . . Core Remaining (%) 100 | 100 . . . Volleys Fired 25 | 1 18 6 . Largest 2 | 2 2 1 . Hottest 90 | 90 90 50 . Shots Fired 42 | 2 34 6 . Gun 42 | 2 34 6 . Cannon . | . . . . Launcher . | . . . . Special . | . . . . Kinetic . | . . . . Thermal 39 | 2 31 6 . Explosive . | . . . . Electromagnetic 3 | . 3 . . Robot Hit Streak 30 | 2 30 . . Robot Miss Streak 1 | . 1 . . Penetration Max . | . . . . Secondary Targets . | . . . . Shots Hit Robots 35 | 2 31 . 2 Core Hits 14 | 2 12 . . Critical Kills . | . . . . Critical Parts Destroyed . | . . . . Critical Strikes . | . . . . Melee Attacks 6 | . 1 . 5 Impact . | . . . . Slashing 5 | . . . 5 Piercing . | . . . . Sneak Attacks . | . . . . Combat Hostiles . | . . . . Follow-up Attacks . | . . . . Damage Inflicted 446 | 23 358 . 65 Guns 381 | 23 358 . . Cannons . | . . . . Explosions . | . . . . Melee 60 | . . . 60 Ramming 5 | . . . 5 Kinetic . | . . . . Thermal 338 | 23 315 . . Explosive . | . . . . Electromagnetic 43 | . 43 . . Impact . | . . . . Slashing 60 | . . . 60 Piercing . | . . . . Highest Corruption 1 | . . . 1 Average Corruption 1 | . . . 1 Corruption Purged . | . . . . Corruption Blocked . | . . . . Effects 1 | . . . 1 Energy Discharges 1 | . . . 1 Overload Shots . | . . . . Overflow Damage 5 | . . . 5 Projectiles . | . . . . Explosions . | . . . . Melee 5 | . . . 5 Knockbacks . | . . . . Impact . | . . . . Kinetic . | . . . . Secondary . | . . . . Self-Inflicted Damage 2 | . . . 2 Shots . | . . . . Rammed 4 | . . . 4 Targets Rammed 4 | . . . 4 Kicked . | . . . . Crushed . | . . . . Highest Temperature 357 | 39 357 . 62 Average Temperature 105 | 22 119 . 29 Received Heat Transfer 490 | . 60 . 430 Siege Activations . | . . . . Martial Activations . | . . . . Shielding Activations . | . . . . Robots Disrupted . | . . . . Combat Hostiles . | . . . . Robots Corrupted 1 | . . . 1 Combat Hostiles 1 | . . . 1 Parts Fried 4 | . . . 4 Impact Corruptions 1 | . . . 1 Robots Melted . | . . . . Combat Hostiles . | . . . . Parts Melted 2 | 1 1 . . Heat Transferred 929 | 62 867 . . Parts Sabotaged . | . . . . Parts Stolen . | . . . . Parts Stripped . | . . . . Power Chain Reactions . | . . . . Alert | -11 -10 -10 -9 ------- Run | Yrd Mat Sub Scr Maximum Alert Level . | . . . . Low Security (%) 100 | 100 100 . . Level 1 . | . . . . Level 2 . | . . . . Level 3 . | . . . . Level 4 . | . . . . Level 5 . | . . . . High Security . | . . . . Max Security . | . . . . Peak Influence 35 | 5 35 . . Initial . | . . . . Average 2 | . 2 . . Influence Increases 98 | 5 93 . . Destroy 0b10 Robot/C 40 | . 40 . . Destroy 0b10 Robot/NC 30 | 5 25 . . Destroy Leader 16 | . 16 . . Successful Hack 12 | . 12 . . Influence Decreases 98 | 5 93 . . Time Decay 98 | 5 93 . . Squads Dispatched . | . . . . Investigation . | . . . . Extermination . | . . . . Reinforcement . | . . . . Assault . | . . . . Garrison . | . . . . Intercept . | . . . . Searches Triggered . | . . . . Construction Impeded . | . . . . Haulers Reinforced . | . . . . Active Scanning Responses . | . . . . Cargo Convoy Interrupts . | . . . . Stealth | -11 -10 -10 -9 --------- Run | Yrd Mat Sub Scr Distress Signals 2 | . 2 . . Communications Jammed . | . . . . Distress Signals . | . . . . Times Spotted 29 | . 5 . 24 Peak Tracking Total 10 | . 2 . 10 Tactical Retreats 1 | . . . 1 Traps | -11 -10 -10 -9 ------- Run | Yrd Mat Sub Scr Traps Triggered 2 | . 2 . . Indirectly . | . . . . Trap Hack Attempts . | . . . . Triggered . | . . . . Disarmed . | . . . . Reprogrammed . | . . . . Reused . | . . . . Traps Extracted . | . . . . Installed . | . . . . Triggered . | . . . . Machines | -11 -10 -10 -9 ---------- Run | Yrd Mat Sub Scr Machines Disabled 2 | . . . 2 Max in Single Turn 1 | . . . 1 Machines Repaired . | . . . . Machines Dismantled 1 | . . . 1 Machines Sabotaged . | . . . . Overloaded Fab Kills . | . . . . Hacking | -11 -10 -10 -9 --------- Run | Yrd Mat Sub Scr Machines Accessed 11 | . 4 . 7 Terminals 3 | . 3 . . Fabricators . | . . . . Repair Stations 1 | . 1 . . Recycling Units . | . . . . Scanalyzers . | . . . . Garrison Access . | . . . . Total Hacks 67 | . 10 . 57 Successful 66 | . 9 . 57 Failed 1 | . 1 . . Catastrophic . | . . . . Database Lockouts . | . . . . Manual . | . . . . Terminals 8 | . 8 . . Fabricators . | . . . . Repair Stations 2 | . 2 . . Recycling Units . | . . . . Scanalyzers . | . . . . Garrison Access . | . . . . Terminal Hacks 64 | . 7 . 57 Record 59 | . 2 . 57 Scanalyzer Index 1 | . 1 . . Hauler Manifests 1 | . 1 . . Registered Components 1 | . 1 . . Registered Prototypes 1 | . 1 . . Zone Layout 1 | . 1 . . Fabricator Hacks . | . . . . Repair Station Hacks 2 | . 2 . . Scan Component 1 | . 1 . . Repair 1 | . 1 . . Recycling Unit Hacks . | . . . . Scanalyzer . | . . . . Garrison Access Hacks . | . . . . Unauthorized Hacks . | . . . . Terminals . | . . . . Fabricators . | . . . . Repair Stations . | . . . . Recycling Units . | . . . . Scanalyzers . | . . . . Garrison Access . | . . . . Data Cores Recovered . | . . . . Used . | . . . . Hacking Detections 2 | . 2 . . Full Trace Events . | . . . . Feedback Events . | . . . . Feedback Blocked . | . . . . Robot Schematics Acquired . | . . . . Robots Built . | . . . . Authchips . | . . . . Time . | . . . . Total Robot Build Rating . | . . . . Part Schematics Acquired . | . . . . Parts Built . | . . . . Authchips . | . . . . Time . | . . . . Total Part Build Rating . | . . . . Part Studies Acquired . | . . . . Parts Repaired 1 | . 1 . . Time 26 | . 26 . . Parts Recycled . | . . . . Recycled Matter . | . . . . Retrieved Matter . | . . . . Retrieved Components . | . . . . Parts Scanalyzed . | . . . . Part Schematics Acquired . | . . . . Parts Damaged . | . . . . Bothacking | -11 -10 -10 -9 ------------ Run | Yrd Mat Sub Scr Used RIF Installer . | . . . . Robots Hacked 1 | . 1 . . Non-combat 1 | . 1 . . Combat . | . . . . Robot Hacks Applied 1 | . 1 . . parse_system 1 | . 1 . . Relay Couplers Released . | . . . . Fabnet Peak Effective % . | . . . . Robots Rewired . | . . . . Allies Hacked . | . . . . Hacks Repelled . | . . . . Allies | -11 -10 -10 -9 -------- Run | Yrd Mat Sub Scr Total Allies . | . . . . Largest Group . | . . . . Highest-Rated Group . | . . . . Highest-Rated Ally . | . . . . Total Orders . | . . . . Ally Attacks . | . . . . Total Damage . | . . . . Kills . | . . . . Allies Corrupted . | . . . . Allies Melted 2 | . . . 2 Intel | -11 -10 -10 -9 ------- Run | Yrd Mat Sub Scr Active Infowar (turns) 1 | . 1 . . ECM 1 | . 1 . . Robot Analysis Total . | . . . . Derelict Logs Recovered . | . . . . Drone Launches . | . . . . Drone Recoveries . | . . . . Exploration | -11 -10 -10 -9 ------------- Run | Yrd Mat Sub Scr Turns Passed 1728 | 133 559 324 712 Spaces Moved 2650 | 97 476 483 1594 Core 14 | 7 2 . 5 Treads . | . . . . Legs 363 | 82 281 . . Wheels 8 | 8 . . . Hover 33 | . . . 33 Flight 2232 | . 193 483 1556 Fastest Speed 37 | 50 37 37 37 Average Speed 49 | 113 88 37 37 Slowest Speed 280 | 120 280 37 150 Overloaded Moves . | . . . . Propulsion Burnouts . | . . . . Robots Hopped 4 | . . . 4 Potential Cave-ins . | . . . . Cave-ins Triggered . | . . . . Exploration Rate (%) 38 | 6 45 19 85 Regions Visited 3 Branch Regions 2 Pre-discovered Areas 1 | . . 1 . Known Exits Taken 2 | 1 1 . . Unknown Exits Taken 1 | . . 1 . Scrap Searched 12 | . . 5 7 Spaces Dug . | . . . . Terrain Destroyed . | . . . . Melee . | . . . . Projectile . | . . . . AOE . | . . . . Terrain Rammed . | . . . . Walls Destroyed . | . . . . Machines Disabled . | . . . . Actions | -11 -10 -10 -9 --------- Run | Yrd Mat Sub Scr Total 3009 | 116 577 623 1693 Wait 230 | . 56 131 43 Move 2641 | 96 475 482 1588 Hop 2 | . . . 2 Pick Up 5 | 1 . . 4 Fast Attach 34 | 10 12 . 12 Attach 11 | 2 2 1 6 Detach 23 | 4 9 1 9 Swap 2 | . . . 2 Drop 22 | 2 4 2 14 Fire 25 | 1 18 6 . Melee 6 | . 1 . 5 Ram 4 | . . . 4 Kick . | . . . . Crush . | . . . . Escape Stasis . | . . . . Rewire . | . . . . Trap . | . . . . Miscellaneous 4 | . . . 4 Route ------- -11/Scrapyard -10/Materials (discovered 3 exits: *Mat x2 / *Sub) -10/Subcaves (discovered 2 exits: *Mat / *Scr) -9/Scraptown (discovered 2 exits: *Fac x2) History --------- Turn | Location | Event 10 | -11/Scrapyard | Identified exit to Materials 10 | -11/Scrapyard | Discovered exit to Materials (range 16) 134 | -11/Scrapyard | Entered Materials 134 | -10/Materials | Evolved 1 slot: Utility x1 135 | -10/Materials | Met a group of wandering Federalists 320 | -10/Materials | Build established: Hacker-Mutant 382 | -10/Materials | Identified exit to Materials 382 | -10/Materials | Discovered exit to Materials (range 14) 422 | -10/Materials | Identified exit to Subcaves 422 | -10/Materials | Discovered exit to Subcaves (range 8) 569 | -10/Materials | Discovered exit to Materials (range 5) 618 | -10/Materials | Repaired Flight Unit 693 | -10/Materials | Entered Subcaves 694 | -10/Subcaves | Continued accompanying wandering Federalists (5) 812 | -10/Subcaves | Identified exit to Materials 812 | -10/Subcaves | Discovered exit to Materials (range 15) 822 | -10/Subcaves | Learned location of Zion (-6) 822 | -10/Subcaves | Met a Zionite searching for "candidates" 828 | -10/Subcaves | Disturbed a concealed Subdweller 1017 | -10/Subcaves | Entered Scraptown 1164 | -9/Scraptown | Visited Red Mages 1190 | -9/Scraptown | Identified exit to Factory 1190 | -9/Scraptown | Discovered exit to Factory (range 7) 1269 | -9/Scraptown | Visited Assassins FH 1279 | -9/Scraptown | Visited Cyclists 1292 | -9/Scraptown | Visited UFD Registry 1292 | -9/Scraptown | Registered with UFD as "Flashkit" 1303 | -9/Scraptown | Visited SPCMW 1314 | -9/Scraptown | Visited The Evicted 1328 | -9/Scraptown | Visited Bundlers 1397 | -9/Scraptown | Visited Comm Corps 1486 | -9/Scraptown | Entered Cyclist Reading Room 1533 | -9/Scraptown | Met Optimus 1533 | -9/Scraptown | Accepted into 0bPrime 1560 | -9/Scraptown | Civil war broke out across Scraptown 1574 | -9/Scraptown | Found Prototype Special Weapon 1574 | -9/Scraptown | Identified Exp. Plasma Cutter 1631 | -9/Scraptown | Found Scrap Suit 1639 | -9/Scraptown | Visited Research Penetration Think Tank 1658 | -9/Scraptown | Visited Science Testing Area 1665 | -9/Scraptown | Visited Abandonware Association 1672 | -9/Scraptown | Learned abandonware demo "TRNCOAT.EXE" 1672 | -9/Scraptown | Learned abandonware demo "REBOOT5.EXE" 1722 | -9/Scraptown | Core integrity fell below 50% 1726 | -9/Scraptown | Core integrity fell below 20% 1729 | -9/Scraptown | Destroyed by ZD-FUR(x) with Makeshift Spear Last Messages --------------- [Achievement: For Emergencies Only] 01721_ Penetrated by Bolt. 01722_ 64-A7S(h) system terminally corrupted. 01722_ Bolt Gun fried. 01722_ Airjet fried. 01722_ Bolt Gun fried. 01722_ Heat Sink fried. 01722_ Imp. Hover Unit destroyed. 01722_ Acquired 6 matter. 01723_ Lgt. Deuterium Engine destroyed. 01723_ Critical hit (Burn: +50). 01724_ Penetrated by Bolt. 01724_ Slammed into 4G-CH3(j). 01725_ Critical hit (Burn: +50). 01725_ Slammed into 4G-CH3(j). 01725_ Scrap Suit broken. 01725_ Destabilizing: Short circuit. 01726_ Slammed into 4G-CH3(j). 01728_ Critical hit (Burn: +50). 01729_ Penetrated by Bolt. Map ----- +----------------------------------------------------+ | | | | | | | | | | | | | | | | | | | ?????????????????????????????????????????????????? | | ?????????????????????????????????????????????????? | | ?????????????????????????????????????????????????? | | ?????????????????????????????????????????????????? | | ?????????????????????????????????????????????????? | | ?????????????????????????????????????????????????? | | ?????????????????????????????????????????????????? | | ?????????????????????????????????????????????????? | | ?????????????????????????????????????????????????? | | ?????????????????????????????????????????????????? | | ?????????????????????????????????????????????????? | | ?????????????????????????????????????????????????? | | ?????????????????????????????????????????????????? | | ???????##########################????????????????? | | ??????#"""##"""##""|##""j## ##= ##??????